{"text_format":"3","workbook":"xlsx","n_sheets":26,"sheets":["Kezdés","1","2","3","4","5","6","7","8","9","10","11","12","13","14","15","16","17","18","19","20","21","22","23","24","További információ"],"not_rendered":{"images":24,"defined_names":5,"pivot_tables":19},"read":"whole","date_system":"1900"}

{"sheet":"Kezdés","index":0,"n_rows":5,"n_cols":1,"rows_kept":5}
["Üdvözöljük!\nUtasítások képernyőolvasóknak: A kimutatások hatékonyabb használata. Az egyszerű kimutatások átfogó összegzést nyújtanak az adatokról – néha azonban bizonyos kérdésekre részletes válaszokra van szükség. Ekkor pedig segíthet az, ha több oszlopmezőt és sormezőt vesz fel. \nAz utasításokban szerepelni fog, hogy mely cellákba kell lépnie az egyes funkciók teszteléséhez vagy az egyéb tudnivalókhoz.\nAz indításhoz nyomja le a CTRL+PAGE DOWN billentyűkombinációt."]
["A kimutatások hatékonyabb \nhasználata"]
["Az egyszerű kimutatások átfogó összegzést nyújtanak az adatokról –\nnéha azonban bizonyos kérdésekre részletes válaszokra van szükség.\nEkkor pedig segíthet az, ha több oszlopmezőt és sormezőt vesz fel."]
["JÓ TUDNI\nTúl van már az első oktatóanyag elsajátításán? Ha nem, válassza a Fájl > Új lehetőséget, és keresse meg Az első kimutatás létrehozása nevű fájlt."]
["A CTRL+HOME billentyűkkel léphet a lap tetejére. A CTRL+PAGE DOWN billentyűkombinációt lenyomva elindíthatja a bemutatót."]

{"sheet":"1","index":1,"n_rows":16,"n_cols":9,"rows_kept":16}
["Az első oktatóanyagban a kimutatás fogalmát ismertettük. Arról is szót ejtettünk, hogy miként lehet egy sormezőt egy értékmezőt felosztó feltételként használni.   "]
["A H10–I14 cellák egy kimutatást tartalmaznak, amely a B8–E16 cellákban lévő adatokat összegzi. A kimutatás két oszloppal rendelkezik: Vevő és Összesen. A Vevő oszlopban az Apa, az Anya, a Szilvia és a Végösszeg érték található; az Összesen oszlopban pedig a 220 Ft, a 270 Ft, a 810 Ft és a 1300 Ft érték szerepel. A Vevő oszlop egy sormezőt, az Összesen oszlop pedig egy értékmezőt tartalmaz."]
["Az oktatóanyag folytatásához nyomja le a CTRL+PAGE DOWN billentyűkombinációt. Az előző lapra ugráshoz nyomja le a CTRL+PAGE UP billentyűkombinációt."]
[]
[]
[]
[]
[null,"Dátum","Vevő","Típus","Összeg"]
["Ebben a példában az látható, ahogyan a sormező...","2017-01-01","Apa","Ajándékok",{"v":95,"d":"95 Ft"}]
["...felosztja az értékmezőt.","2017-01-15","Anya","Élelmiszer",{"v":325,"d":"325 Ft"},null,null,"Vevő","Összeg / Összeg"]
[null,"2017-01-17","Anya","Jegyek",{"v":250,"d":"250 Ft"},null,null,"Apa",{"v":220,"d":"220 Ft"}]
[null,"2017-01-21","Apa","Élelmiszer",{"v":125,"d":"125 Ft"},null,null,"Szilvia",{"v":270,"d":"270 Ft"}]
[null,"2017-02-02","Anya","Élelmiszer",{"v":235,"d":"235 Ft"},null,null,"Anya",{"v":810,"d":"810 Ft"}]
[null,"2017-02-20","Szilvia","Zene",{"v":20,"d":"20 Ft"},null,null,"Grand Total",{"v":1300,"d":"1,300 Ft"}]
[null,"2017-02-25","Szilvia","Jegyek",{"v":125,"d":"125 Ft"}]
[null,"2017-02-25","Szilvia","Sport",{"v":125,"d":"125 Ft"}]

{"sheet":"2","index":2,"n_rows":108,"n_cols":7,"rows_kept":108}
["Amikor azonban először vet pillantást egy kimutatásra, úgy láthatja, hogy több válaszra van szüksége belőle."]
["Amikor először vet pillantást egy kimutatásra, felmerülhetnek Önben a következő kérdések: „Mikor történtek ezek a vásárlások?”, Mire költöttek az egyes személyek?” és „Anya miért vett ilyen drága dolgot?”"]
["Ebben a példában az F11–G15 cellákban a korábbival megegyező kétoszlopos kimutatás szerepel. A Vevő oszlop egy sormező, amelyben az Apa, az Anya, a Szilvia és a Végösszeg érték szerepel; az Összesen oszlop pedig egy értékmező, amelyben a 220 Ft, a 270 Ft, a 810 Ft és a 1300 Ft érték található. "]
["Az oktatóanyag folytatásához nyomja le a CTRL+PAGE DOWN billentyűkombinációt. Az előző lapra ugráshoz nyomja le a CTRL+PAGE UP billentyűkombinációt."]
[]
[]
[]
[]
[]
[]
[{"$nulls":5},"Vevő","Összeg / Összeg"]
[{"$nulls":5},"Apa",{"v":220,"d":"220 Ft"}]
[{"$nulls":5},"Szilvia",{"v":270,"d":"270 Ft"}]
[{"$nulls":5},"Anya",{"v":810,"d":"810 Ft"}]
[{"$nulls":5},"Grand Total",{"v":1300,"d":"1,300 Ft"}]
{"$rows_empty":84}
[null,"Dátum","Vevő","Típus","Összeg"]
[null,"2017-01-01","Apa","Ajándékok",{"v":95,"d":"95 Ft"}]
[null,"2017-01-15","Anya","Élelmiszer",{"v":325,"d":"325 Ft"}]
[null,"2017-01-17","Anya","Jegyek",{"v":250,"d":"250 Ft"}]
[null,"2017-01-21","Apa","Élelmiszer",{"v":125,"d":"125 Ft"}]
[null,"2017-02-02","Anya","Élelmiszer",{"v":235,"d":"235 Ft"}]
[null,"2017-02-20","Szilvia","Zene",{"v":20,"d":"20 Ft"}]
[null,"2017-02-25","Szilvia","Jegyek",{"v":125,"d":"125 Ft"}]
[null,"2017-02-25","Szilvia","Sport",{"v":125,"d":"125 Ft"}]

{"sheet":"3","index":3,"n_rows":108,"n_cols":7,"rows_kept":108}
["Ezek mind jó felvetések, de egyelőre összpontosítsunk egyetlen kérdésre."]
["Mire költöttek az egyes személyek?"]
["Referenciaként az F11–G15 cellákban a korábbival megegyező kétoszlopos kimutatás szerepel. A Vevő oszlop egy sormező, amelyben az Apa, az Anya, a Szilvia és a Végösszeg érték szerepel; az Összesen oszlop pedig egy értékmező, amelyben a 220 Ft, a 270 Ft, a 810 Ft és a 1300 Ft érték található. "]
["Az oktatóanyag folytatásához nyomja le a CTRL+PAGE DOWN billentyűkombinációt. Az előző lapra ugráshoz nyomja le a CTRL+PAGE UP billentyűkombinációt."]
[]
[]
[]
[]
[]
[]
[{"$nulls":5},"Vevő","Összeg / Összeg"]
[{"$nulls":5},"Apa",{"v":220,"d":"220 Ft"}]
[{"$nulls":5},"Szilvia",{"v":270,"d":"270 Ft"}]
[{"$nulls":5},"Anya",{"v":810,"d":"810 Ft"}]
[{"$nulls":5},"Grand Total",{"v":1300,"d":"1,300 Ft"}]
{"$rows_empty":84}
[null,"Dátum","Vevő","Típus","Összeg"]
[null,"2017-01-01","Apa","Ajándékok",{"v":95,"d":"95 Ft"}]
[null,"2017-01-15","Anya","Élelmiszer",{"v":325,"d":"325 Ft"}]
[null,"2017-01-17","Anya","Jegyek",{"v":250,"d":"250 Ft"}]
[null,"2017-01-21","Apa","Élelmiszer",{"v":125,"d":"125 Ft"}]
[null,"2017-02-02","Anya","Élelmiszer",{"v":235,"d":"235 Ft"}]
[null,"2017-02-20","Szilvia","Zene",{"v":20,"d":"20 Ft"}]
[null,"2017-02-25","Szilvia","Jegyek",{"v":125,"d":"125 Ft"}]
[null,"2017-02-25","Szilvia","Sport",{"v":125,"d":"125 Ft"}]

{"sheet":"4","index":4,"n_rows":108,"n_cols":9,"rows_kept":108}
["Az utolsó kérdés ez volt: „Mire költöttek az egyes személyek?”"]
["Ezt a kérdést úgy válaszoltuk meg, hogy felvettünk egy oszlopmezőt a Típus oszlopba. Ennek következtében a kimutatásban most öt olyan új oszlop szerepel, amelyből kiderül, hogy az egyes személyek mit vásároltak. "]
["Az új kimutatás a C10–I15 cellákban található, a Vevő, az Élelmiszer, a Zene, a Sport, a Jegyek, az Ajándékok és a Végösszeg oszloppal. A Vevő és a Végösszeg oszlop nem változott a korábbihoz képest, és közöttük szerepelnek az új adatoszlopok."]
["Az oktatóanyag folytatásához nyomja le a CTRL+PAGE DOWN billentyűkombinációt. Az előző lapra ugráshoz nyomja le a CTRL+PAGE UP billentyűkombinációt."]
[]
[]
[]
[]
[]
[null,null,"Összeg / Összeg","Típus"]
[null,null,"Vevő","Élelmiszer","Zene","Sport","Jegyek","Ajándékok","Grand Total"]
[null,null,"Apa",{"v":125,"d":"125 Ft"},{"$nulls":3},{"v":95,"d":"95 Ft"},{"v":220,"d":"220 Ft"}]
[null,null,"Szilvia",null,{"v":20,"d":"20 Ft"},{"v":125,"d":"125 Ft"},{"v":125,"d":"125 Ft"},null,{"v":270,"d":"270 Ft"}]
[null,null,"Anya",{"v":560,"d":"560 Ft"},null,null,{"v":250,"d":"250 Ft"},null,{"v":810,"d":"810 Ft"}]
[null,null,"Grand Total",{"v":685,"d":"685 Ft"},{"v":20,"d":"20 Ft"},{"v":125,"d":"125 Ft"},{"v":375,"d":"375 Ft"},{"v":95,"d":"95 Ft"},{"v":1300,"d":"1,300 Ft"}]
{"$rows_empty":84}
[null,"Dátum","Vevő","Típus","Összeg"]
[null,"2017-01-01","Apa","Ajándékok",{"v":95,"d":"95 Ft"}]
[null,"2017-01-15","Anya","Élelmiszer",{"v":325,"d":"325 Ft"}]
[null,"2017-01-17","Anya","Jegyek",{"v":250,"d":"250 Ft"}]
[null,"2017-01-21","Apa","Élelmiszer",{"v":125,"d":"125 Ft"}]
[null,"2017-02-02","Anya","Élelmiszer",{"v":235,"d":"235 Ft"}]
[null,"2017-02-20","Szilvia","Zene",{"v":20,"d":"20 Ft"}]
[null,"2017-02-25","Szilvia","Jegyek",{"v":125,"d":"125 Ft"}]
[null,"2017-02-25","Szilvia","Sport",{"v":125,"d":"125 Ft"}]

{"sheet":"5","index":5,"n_rows":108,"n_cols":9,"rows_kept":108}
["Ha a kimutatás nehezen értelmezhető, próbálkozzon a következővel: Olvassa az adatokat balról, majd felülről, végül pedig alulról. Az alábbi példában a C12 cellában az Apa, a D12 cellában a 125 Ft (Élelmiszer), az E12 cellában a 95 Ft (Ajándékok), az I12 cellában pedig a 220 Ft (Végösszeg) érték szerepel. A 13. és a 14. sorban Szilvia és anya adatai, a 15. sorban pedig a végösszeg látható."]
["Az oktatóanyag folytatásához nyomja le a CTRL+PAGE DOWN billentyűkombinációt. Az előző lapra ugráshoz nyomja le a CTRL+PAGE UP billentyűkombinációt."]
{"$rows_empty":7}
[null,null,"Összeg / Összeg","Típus"]
[null,null,"Vevő","Élelmiszer","Ajándékok","Zene","Sport","Jegyek","Grand Total"]
[null,null,"Apa",{"v":125,"d":"125 Ft"},{"v":95,"d":"95 Ft"},{"$nulls":3},{"v":220,"d":"220 Ft"}]
[null,null,"Szilvia",null,null,{"v":20,"d":"20 Ft"},{"v":125,"d":"125 Ft"},{"v":125,"d":"125 Ft"},{"v":270,"d":"270 Ft"}]
[null,null,"Anya",{"v":560,"d":"560 Ft"},{"$nulls":3},{"v":250,"d":"250 Ft"},{"v":810,"d":"810 Ft"}]
[null,null,"Grand Total",{"v":685,"d":"685 Ft"},{"v":95,"d":"95 Ft"},{"v":20,"d":"20 Ft"},{"v":125,"d":"125 Ft"},{"v":375,"d":"375 Ft"},{"v":1300,"d":"1,300 Ft"}]
{"$rows_empty":84}
[null,"Dátum","Vevő","Típus","Összeg"]
[null,"2017-01-01","Apa","Ajándékok",{"v":95,"d":"95 Ft"}]
[null,"2017-01-15","Anya","Élelmiszer",{"v":325,"d":"325 Ft"}]
[null,"2017-01-17","Anya","Jegyek",{"v":250,"d":"250 Ft"}]
[null,"2017-01-21","Apa","Élelmiszer",{"v":125,"d":"125 Ft"}]
[null,"2017-02-02","Anya","Élelmiszer",{"v":235,"d":"235 Ft"}]
[null,"2017-02-20","Szilvia","Zene",{"v":20,"d":"20 Ft"}]
[null,"2017-02-25","Szilvia","Jegyek",{"v":125,"d":"125 Ft"}]
[null,"2017-02-25","Szilvia","Sport",{"v":125,"d":"125 Ft"}]

{"sheet":"6","index":6,"n_rows":3,"n_cols":1,"rows_kept":3}
["Ezt ne most végezze el, hanem néhány lépés múlva, amikor már egy kimutatással dolgozik. Elsőként adatokat fog létrehozni az Oszlopok mezőben. Ehhez elhelyezi a Típus mezőt az Oszlopok mező területén."]
["A Kimutatásmezők lista képe, amelyen egy nyíl alakú kurzor jelzi a Típus mező Oszlopok területre húzását"]
["Az oktatóanyag folytatásához nyomja le a CTRL+PAGE DOWN billentyűkombinációt. Az előző lapra ugráshoz nyomja le a CTRL+PAGE UP billentyűkombinációt."]

{"sheet":"7","index":7,"n_rows":108,"n_cols":8,"rows_kept":108}
["1. Ebben a példában a kimutatásterület a B13–C17 cellákban található. Lépjen ezen cellák bármelyikére."]
["2. A Kimutatásmezők lista megnyitásához nyomja le az ALT+JÉ billentyűkombinációt, majd az S billentyűt. A fókusz automatikusan a Keresés szövegmezőbe kerül: A „keresés“ szerkesztése"]
["3. A nyílbillentyűkkel jelölje ki a Típus mezőt. Ezután a szóközbillentyűt lenyomva vegye fel a Típus mezőt a Sorok területre. "]
["4. A Típus mező kiválasztásához nyomja meg a TAB billentyűt. Nyomja le az ENTER billentyűt, majd a nyílbillentyűk segítségével válassza áthelyezés az oszlopcímkékhez, és az ENTER billentyűt lenyomva vegye fel a típusmezőt az oszlopok területére. A Kimutatásmezők ablakból való kilépéshez nyomja le az ALT+JÉ+S billentyűkombinációt."]
["Az oktatóanyag folytatásához nyomja le a CTRL+PAGE DOWN billentyűkombinációt. Az előző lapra ugráshoz nyomja le a CTRL+PAGE UP billentyűkombinációt."]
[]
[]
[]
[{"$nulls":7},{"$f":"IF(AND($B$14=\"Vevő\",$H$17=270),\"Szép munka! Elhelyezte az első\",\" \")","v":" "}]
[{"$nulls":7},{"$f":"IF(AND($B$14=\"Vevő\",$H$17=270),\"oszlopmezőt. A folytatáshoz\",\" \")","v":" "}]
[{"$nulls":7},{"$f":"IF(AND($B$14=\"Vevő\",$H$17=270),\"kattintson a Következő gombra...\",\" \")","v":" "}]
[]
[null,"Vevő","Összeg / Összeg"]
[null,"Apa",{"v":220,"d":"220 Ft"}]
[null,"Szilvia",{"v":270,"d":"270 Ft"}]
[null,"Anya",{"v":810,"d":"810 Ft"}]
[null,"Végösszeg",{"v":1300,"d":"1,300 Ft"}]
{"$rows_empty":82}
[null,"Dátum","Vevő","Típus","Összeg"]
[null,"2017-01-01","Apa","Ajándékok",{"v":95,"d":"95 Ft"}]
[null,"2017-01-15","Anya","Élelmiszer",{"v":325,"d":"325 Ft"}]
[null,"2017-01-17","Anya","Jegyek",{"v":250,"d":"250 Ft"}]
[null,"2017-01-21","Apa","Élelmiszer",{"v":125,"d":"125 Ft"}]
[null,"2017-02-02","Anya","Élelmiszer",{"v":235,"d":"235 Ft"}]
[null,"2017-02-20","Szilvia","Zene",{"v":20,"d":"20 Ft"}]
[null,"2017-02-25","Szilvia","Jegyek",{"v":125,"d":"125 Ft"}]
[null,"2017-02-25","Szilvia","Sport",{"v":125,"d":"125 Ft"}]

{"sheet":"8","index":8,"n_rows":108,"n_cols":9,"rows_kept":108}
["Most ellenőrizze az imént létrehozott kimutatást, amelyet ez alkalommal néhány speciális színnel egészítettünk ki, hogy megkülönböztessük a sor-, az oszlop- és az értékmezőket."]
["A sormező a C10–C13 cellákban található, és sárga árnyékolást kapott."]
["Az oszlopmező a D9–H10 cellákban található, és narancssárga árnyékolást kapott."]
["Az értékmező a D11–H13 cellákban található, és kék árnyékolást kapott."]
["Az oktatóanyag folytatásához nyomja le a CTRL+PAGE DOWN billentyűkombinációt. Az előző lapra ugráshoz nyomja le a CTRL+PAGE UP billentyűkombinációt."]
[]
[]
[]
[null,null,"Összeg / Összeg","Típus"]
[null,null,"Vevő","Élelmiszer","Ajándékok","Zene","Sport","Jegyek","Grand Total"]
[null,null,"Apa",{"v":125,"d":"125 Ft"},{"v":95,"d":"95 Ft"},{"$nulls":3},{"v":220,"d":"220 Ft"}]
[null,null,"Szilvia",null,null,{"v":20,"d":"20 Ft"},{"v":125,"d":"125 Ft"},{"v":125,"d":"125 Ft"},{"v":270,"d":"270 Ft"}]
[null,null,"Anya",{"v":560,"d":"560 Ft"},{"$nulls":3},{"v":250,"d":"250 Ft"},{"v":810,"d":"810 Ft"}]
[null,null,"Grand Total",{"v":685,"d":"685 Ft"},{"v":95,"d":"95 Ft"},{"v":20,"d":"20 Ft"},{"v":125,"d":"125 Ft"},{"v":375,"d":"375 Ft"},{"v":1300,"d":"1,300 Ft"}]
{"$rows_empty":85}
[null,"Dátum","Vevő","Típus","Összeg"]
[null,"2017-01-01","Apa","Ajándékok",{"v":95,"d":"95 Ft"}]
[null,"2017-01-15","Anya","Élelmiszer",{"v":325,"d":"325 Ft"}]
[null,"2017-01-17","Anya","Jegyek",{"v":250,"d":"250 Ft"}]
[null,"2017-01-21","Apa","Élelmiszer",{"v":125,"d":"125 Ft"}]
[null,"2017-02-02","Anya","Élelmiszer",{"v":235,"d":"235 Ft"}]
[null,"2017-02-20","Szilvia","Zene",{"v":20,"d":"20 Ft"}]
[null,"2017-02-25","Szilvia","Jegyek",{"v":125,"d":"125 Ft"}]
[null,"2017-02-25","Szilvia","Sport",{"v":125,"d":"125 Ft"}]

{"sheet":"9","index":9,"n_rows":3,"n_cols":1,"rows_kept":3}
["Íme egy másik módszer erre: A sormező a bal oldalon, az oszlopmező pedig felül található. Ezek mindegyike egy olyan feltételt ad meg az értékmezőhöz, amelyek összegzik őket."]
["Kép a négy szakaszból álló négyszögletes területről, amelyen a sárga sormező balra lent, a narancssárga oszlopmező jobbra fent, a kék értékmező pedig jobbra lent található"]
["Az oktatóanyag folytatásához nyomja le a CTRL+PAGE DOWN billentyűkombinációt. Az előző lapra ugráshoz nyomja le a CTRL+PAGE UP billentyűkombinációt."]

{"sheet":"10","index":10,"n_rows":3,"n_cols":1,"rows_kept":3}
["Gondoljon rá így a mezőlisták használatakor. A sormező a bal oldalon, az oszlopmező pedig felül található. Ezek mindegyike egy olyan feltételt ad meg az értékmezőhöz, amelyek összegzik őket."]
["Kép a kimutatásmezők listájáról, amelyen a sárga sormező balra lent, a narancssárga oszlopmező jobbra fent, a kék értékmező pedig jobbra lent található"]
["Az oktatóanyag folytatásához nyomja le a CTRL+PAGE DOWN billentyűkombinációt. Az előző lapra ugráshoz nyomja le a CTRL+PAGE UP billentyűkombinációt."]

{"sheet":"11","index":11,"n_rows":121,"n_cols":24,"rows_kept":121}
["Egyetlen dologra kell ügyelnie: Ha egy oszlopmező túl sok oszlopot vesz fel egy kimutatásba, az nagyon szélessé válhat. "]
["Ebben a példában a kimutatás a C10–X15 cellákban található, mivel az oszlopmező 20 új oszlopot vett fel. Ez rengeteg oszlop! Emiatt másoknak sokat kell majd görgetniük..."]
["Az oktatóanyag folytatásához nyomja le a CTRL+PAGE DOWN billentyűkombinációt. Az előző lapra ugráshoz nyomja le a CTRL+PAGE UP billentyűkombinációt."]
[]
[]
[]
[]
[]
[]
[null,null,"Összeg / Összeg","Típus"]
[null,null,"Vevő","Adók","Áram","Autóbiztosítás","Egészségbiztosítás","Egészségügy","Elektronika","Élelmiszer","Étkezés","Fogorvos","Jegyek","Könyv","Lakásbiztosítás","Parkolás","Repülőjegy","Ruházat","Sport","Tagdíjak","Üzemanyag","Zene","Zeneórák","Grand Total"]
[null,null,"Anya",null,{"v":70,"d":"70 Ft"},{"v":74,"d":"74 Ft"},{"v":70,"d":"70 Ft"},{"v":74,"d":"74 Ft"},null,{"v":470,"d":"470 Ft"},null,{"v":235,"d":"235 Ft"},null,null,{"v":235,"d":"235 Ft"},{"$nulls":4},{"v":125,"d":"125 Ft"},{"v":74,"d":"74 Ft"},null,null,{"v":1427,"d":"1,427 Ft"}]
[null,null,"Apa",{"v":500,"d":"500 Ft"},{"$nulls":12},{"v":500,"d":"500 Ft"},null,{"v":1000,"d":"1,000 Ft"},{"$nulls":4},{"v":2000,"d":"2,000 Ft"}]
[null,null,"Szilvia",{"$nulls":5},{"v":125,"d":"125 Ft"},null,{"v":20,"d":"20 Ft"},null,{"v":125,"d":"125 Ft"},{"v":250,"d":"250 Ft"},null,{"v":20,"d":"20 Ft"},null,{"v":125,"d":"125 Ft"},{"$nulls":3},{"v":20,"d":"20 Ft"},{"v":250,"d":"250 Ft"},{"v":935,"d":"935 Ft"}]
[null,null,"Grand Total",{"v":500,"d":"500 Ft"},{"v":70,"d":"70 Ft"},{"v":74,"d":"74 Ft"},{"v":70,"d":"70 Ft"},{"v":74,"d":"74 Ft"},{"v":125,"d":"125 Ft"},{"v":470,"d":"470 Ft"},{"v":20,"d":"20 Ft"},{"v":235,"d":"235 Ft"},{"v":125,"d":"125 Ft"},{"v":250,"d":"250 Ft"},{"v":235,"d":"235 Ft"},{"v":20,"d":"20 Ft"},{"v":500,"d":"500 Ft"},{"v":125,"d":"125 Ft"},{"v":1000,"d":"1,000 Ft"},{"v":125,"d":"125 Ft"},{"v":74,"d":"74 Ft"},{"v":20,"d":"20 Ft"},{"v":250,"d":"250 Ft"},{"v":4362,"d":"4,362 Ft"}]
{"$rows_empty":84}
[null,"Dátum","Vevő","Típus","Összeg"]
[null,"2017-01-17","Apa","Sport",{"v":1000,"d":"1,000 Ft"}]
[null,"2017-01-17","Apa","Repülőjegy",{"v":500,"d":"500 Ft"}]
[null,"2017-01-17","Apa","Adók",{"v":500,"d":"500 Ft"}]
[null,"2017-02-20","Szilvia","Zene",{"v":20,"d":"20 Ft"}]
[null,"2017-02-25","Szilvia","Jegyek",{"v":125,"d":"125 Ft"}]
[null,"2017-01-21","Szilvia","Könyv",{"v":250,"d":"250 Ft"}]
[null,"2017-02-20","Szilvia","Étkezés",{"v":20,"d":"20 Ft"}]
[null,"2017-02-25","Szilvia","Ruházat",{"v":125,"d":"125 Ft"}]
[null,"2017-01-21","Szilvia","Zeneórák",{"v":250,"d":"250 Ft"}]
[null,"2017-02-20","Szilvia","Parkolás",{"v":20,"d":"20 Ft"}]
[null,"2017-02-25","Szilvia","Elektronika",{"v":125,"d":"125 Ft"}]
[null,"2017-01-01","Anya","Üzemanyag",{"v":74,"d":"74 Ft"}]
[null,"2017-01-15","Anya","Élelmiszer",{"v":235,"d":"235 Ft"}]
[null,"2017-01-21","Anya","Tagdíjak",{"v":125,"d":"125 Ft"}]
[null,"2017-02-02","Anya","Élelmiszer",{"v":235,"d":"235 Ft"}]
[null,"2017-01-01","Anya","Egészségügy",{"v":74,"d":"74 Ft"}]
[null,"2017-01-15","Anya","Áram",{"v":70,"d":"70 Ft"}]
[null,"2017-02-02","Anya","Fogorvos",{"v":235,"d":"235 Ft"}]
[null,"2017-01-01","Anya","Autóbiztosítás",{"v":74,"d":"74 Ft"}]
[null,"2017-01-15","Anya","Egészségbiztosítás",{"v":70,"d":"70 Ft"}]
[null,"2017-02-02","Anya","Lakásbiztosítás",{"v":235,"d":"235 Ft"}]

{"sheet":"12","index":12,"n_rows":119,"n_cols":5,"rows_kept":119}
["A túl széles kimutatásoknak van egy alternatívájuk: kiküszöbölésükhöz használhat egy második sormező. A második sormező behúzva fog megjelenni az első sormező alatt."]
["Ebben a példában a D8–E32 cellákban egy kimutatás szerepel. A kimutatás D oszlopában az Apa, a Szilvia és az Anya sormező látható első sormező. Ezután a költés típusai következnek alattuk második sormező, a Sport, a Repülőjegy, az Étkezés stb. tételekkel."]
["JÓ TUDNI\nMásodik sormező megadása esetén a kimutatás vízszintes helyett inkább függőleges tájolású lesz. Néhányan a függőleges kimutatásokat áttekinthetőbbnek találják, mivel ezeknél nem kell annyit oldalsó irányban görgetni."]
["EXCEL-SZÓHASZNÁLAT\nA második sormezőt néha „másodlagos sormező” néven is szokták emlegetni."]
["Az oktatóanyag folytatásához nyomja le a CTRL+PAGE DOWN billentyűkombinációt. Az előző lapra ugráshoz nyomja le a CTRL+PAGE UP billentyűkombinációt."]
[]
[]
[{"$nulls":3},"Row Labels","Összeg / Összeg"]
[{"$nulls":3},"Apa",{"v":2000,"d":"2,000 Ft"}]
[{"$nulls":3},"Sport",{"v":1000,"d":"1,000 Ft"}]
[{"$nulls":3},"Adók",{"v":500,"d":"500 Ft"}]
[{"$nulls":3},"Repülőjegy",{"v":500,"d":"500 Ft"}]
[{"$nulls":3},"Szilvia",{"v":935,"d":"935 Ft"}]
[{"$nulls":3},"Könyv",{"v":250,"d":"250 Ft"}]
[{"$nulls":3},"Zene",{"v":20,"d":"20 Ft"}]
[{"$nulls":3},"Jegyek",{"v":125,"d":"125 Ft"}]
[{"$nulls":3},"Étkezés",{"v":20,"d":"20 Ft"}]
[{"$nulls":3},"Parkolás",{"v":20,"d":"20 Ft"}]
[{"$nulls":3},"Elektronika",{"v":125,"d":"125 Ft"}]
[{"$nulls":3},"Ruházat",{"v":125,"d":"125 Ft"}]
[{"$nulls":3},"Zeneórák",{"v":250,"d":"250 Ft"}]
[{"$nulls":3},"Anya",{"v":1427,"d":"1,427 Ft"}]
[{"$nulls":3},"Élelmiszer",{"v":470,"d":"470 Ft"}]
[{"$nulls":3},"Üzemanyag",{"v":74,"d":"74 Ft"}]
[{"$nulls":3},"Áram",{"v":70,"d":"70 Ft"}]
[{"$nulls":3},"Egészségügy",{"v":74,"d":"74 Ft"}]
[{"$nulls":3},"Fogorvos",{"v":235,"d":"235 Ft"}]
[{"$nulls":3},"Autóbiztosítás",{"v":74,"d":"74 Ft"}]
[{"$nulls":3},"Tagdíjak",{"v":125,"d":"125 Ft"}]
[{"$nulls":3},"Egészségbiztosítás",{"v":70,"d":"70 Ft"}]
[{"$nulls":3},"Lakásbiztosítás",{"v":235,"d":"235 Ft"}]
[{"$nulls":3},"Grand Total",{"v":4362,"d":"4,362 Ft"}]
{"$rows_empty":65}
[null,"Dátum","Vevő","Típus","Összeg"]
[null,"2017-01-17","Apa","Sport",{"v":1000,"d":"1,000 Ft"}]
[null,"2017-01-17","Apa","Repülőjegy",{"v":500,"d":"500 Ft"}]
[null,"2017-01-17","Apa","Adók",{"v":500,"d":"500 Ft"}]
[null,"2017-02-20","Szilvia","Zene",{"v":20,"d":"20 Ft"}]
[null,"2017-02-25","Szilvia","Jegyek",{"v":125,"d":"125 Ft"}]
[null,"2017-01-21","Szilvia","Könyv",{"v":250,"d":"250 Ft"}]
[null,"2017-02-20","Szilvia","Étkezés",{"v":20,"d":"20 Ft"}]
[null,"2017-02-25","Szilvia","Ruházat",{"v":125,"d":"125 Ft"}]
[null,"2017-01-21","Szilvia","Zeneórák",{"v":250,"d":"250 Ft"}]
[null,"2017-02-20","Szilvia","Parkolás",{"v":20,"d":"20 Ft"}]
[null,"2017-02-25","Szilvia","Elektronika",{"v":125,"d":"125 Ft"}]
[null,"2017-01-01","Anya","Üzemanyag",{"v":74,"d":"74 Ft"}]
[null,"2017-01-15","Anya","Élelmiszer",{"v":235,"d":"235 Ft"}]
[null,"2017-01-21","Anya","Tagdíjak",{"v":125,"d":"125 Ft"}]
[null,"2017-02-02","Anya","Élelmiszer",{"v":235,"d":"235 Ft"}]
[null,"2017-01-01","Anya","Egészségügy",{"v":74,"d":"74 Ft"}]
[null,"2017-01-15","Anya","Áram",{"v":70,"d":"70 Ft"}]
[null,"2017-02-02","Anya","Fogorvos",{"v":235,"d":"235 Ft"}]
[null,"2017-01-01","Anya","Autóbiztosítás",{"v":74,"d":"74 Ft"}]
[null,"2017-01-15","Anya","Egészségbiztosítás",{"v":70,"d":"70 Ft"}]
[null,"2017-02-02","Anya","Lakásbiztosítás",{"v":235,"d":"235 Ft"}]

{"sheet":"13","index":13,"n_rows":3,"n_cols":1,"rows_kept":3}
["A következő lapon egy második sormezőt fog felvenni. Ehhez a Típus mezőt a Sorok mezőben a Vevő mező alá fogja helyezni."]
["A Kimutatásmezők lista képe, amelyen egy nyíl alakú kurzor jelzi a Típus mezők Sorok területre húzását."]
["Az oktatóanyag folytatásához nyomja le a CTRL+PAGE DOWN billentyűkombinációt. Az előző lapra ugráshoz nyomja le a CTRL+PAGE UP billentyűkombinációt."]

{"sheet":"14","index":14,"n_rows":122,"n_cols":9,"rows_kept":122}
["1. Ebben a példában a kimutatásterület a B13–C17 cellákban található. Lépjen ezen cellák bármelyikére. "]
["2. A Kimutatásmezők lista megnyitásához nyomja le az ALT+JÉ billentyűkombinációt, majd az S billentyűt. A fókusz automatikusan a Keresés szövegmezőbe kerül: „Ide írhatja a keresett szavakat”. Ne írjon be semmit, hanem egyszer nyomja le a Tab billentyűt. MEGJEGYZÉS: Ha a mezőlista nem indul el, nyomja le ismét az ALT+JÉ billentyűkombinációt, majd az S billentyűt."]
["3. A nyílbillentyűkkel lépjen a Típus mezőhöz. A szóközbillentyűt lenyomva vegye fel a Típus mezőt a Sorok területre. "]
["4. Az ESC billentyű lenyomásával zárja be a Kimutatásmezők panelt. "]
["Az oktatóanyag folytatásához nyomja le a CTRL+PAGE DOWN billentyűkombinációt. Az előző lapra ugráshoz nyomja le a CTRL+PAGE UP billentyűkombinációt.",{"$nulls":7},{"$f":"IF(AND($B$15=\"Adók\",$C$36=74),\"Jól csinálja! Felvett egy\",\" \")","v":" "}]
[{"$nulls":8},{"$f":"IF(AND($B$15=\"Adók\",$C$36=74),\"második sormezőt a kimutatásba.\",\" \")","v":" "}]
[{"$nulls":8},{"$f":"IF(AND($B$15=\"Adók\",$C$36=74),\"Görgessen lejjebb, és kattintson\",\" \")","v":" "}]
[{"$nulls":8},{"$f":"IF(AND($B$15=\"Adók\",$C$36=74),\"a Következő gombra…\",\" \")","v":" "}]
[]
[]
[]
[]
[null,"Row Labels","Összeg / Összeg"]
[null,"Apa",{"v":2000,"d":"2,000 Ft"}]
[null,"Szilvia",{"v":935,"d":"935 Ft"}]
[null,"Anya",{"v":1427,"d":"1,427 Ft"}]
[null,"Grand Total",{"v":4362,"d":"4,362 Ft"}]
{"$rows_empty":83}
[null,"Dátum","Vevő","Típus","Összeg"]
[null,"2017-01-17","Apa","Sport",{"v":1000,"d":"1,000 Ft"}]
[null,"2017-01-17","Apa","Repülőjegy",{"v":500,"d":"500 Ft"}]
[null,"2017-01-17","Apa","Adók",{"v":500,"d":"500 Ft"}]
[null,"2017-02-20","Szilvia","Zene",{"v":20,"d":"20 Ft"}]
[null,"2017-02-25","Szilvia","Jegyek",{"v":125,"d":"125 Ft"}]
[null,"2017-01-21","Szilvia","Könyv",{"v":250,"d":"250 Ft"}]
[null,"2017-02-20","Szilvia","Étkezés",{"v":20,"d":"20 Ft"}]
[null,"2017-02-25","Szilvia","Ruházat",{"v":125,"d":"125 Ft"}]
[null,"2017-01-21","Szilvia","Zeneórák",{"v":250,"d":"250 Ft"}]
[null,"2017-02-20","Szilvia","Parkolás",{"v":20,"d":"20 Ft"}]
[null,"2017-02-25","Szilvia","Elektronika",{"v":125,"d":"125 Ft"}]
[null,"2017-01-01","Anya","Üzemanyag",{"v":74,"d":"74 Ft"}]
[null,"2017-01-15","Anya","Élelmiszer",{"v":235,"d":"235 Ft"}]
[null,"2017-01-21","Anya","Tagdíjak",{"v":125,"d":"125 Ft"}]
[null,"2017-02-02","Anya","Élelmiszer",{"v":235,"d":"235 Ft"}]
[null,"2017-01-01","Anya","Egészségügy",{"v":74,"d":"74 Ft"}]
[null,"2017-01-15","Anya","Áram",{"v":70,"d":"70 Ft"}]
[null,"2017-02-02","Anya","Fogorvos",{"v":235,"d":"235 Ft"}]
[null,"2017-01-01","Anya","Autóbiztosítás",{"v":74,"d":"74 Ft"}]
[null,"2017-01-15","Anya","Egészségbiztosítás",{"v":70,"d":"70 Ft"}]
[null,"2017-02-02","Anya","Lakásbiztosítás",{"v":235,"d":"235 Ft"}]

{"sheet":"15","index":15,"n_rows":121,"n_cols":7,"rows_kept":121}
["Ha egyszerűbb kimutatást szeretne, összecsukhatja a második sormező adatait, így azok eltűnnek az útból. "]
["Ebben a példában a kimutatás az F7–G31 cellákban található. Jelölje ki az F8 cellát az Apa oszlop első sormezőjének kiválasztásához. Ezután nyomja le az Alt+JÉ billentyűkombinációt, majd a második mező kibontásához az E, összecsukásához pedig az M billentyűt."]
["Az oktatóanyag folytatásához nyomja le a CTRL+PAGE DOWN billentyűkombinációt. Az előző lapra ugráshoz nyomja le a CTRL+PAGE UP billentyűkombinációt."]
[]
[]
[{"$nulls":5},{"$f":"IF(AND($F$9=\"Szilvia\",$G$9=935),\"Ügyes!\",\" \")","v":" "}]
[{"$nulls":5},"Row Labels","Összeg / Összeg"]
[{"$nulls":5},"Apa",{"v":2000,"d":"2,000 Ft"}]
[{"$nulls":5},"Sport",{"v":1000,"d":"1,000 Ft"}]
[{"$nulls":5},"Adók",{"v":500,"d":"500 Ft"}]
[{"$nulls":5},"Repülőjegy",{"v":500,"d":"500 Ft"}]
[{"$nulls":5},"Szilvia",{"v":935,"d":"935 Ft"}]
[{"$nulls":5},"Könyv",{"v":250,"d":"250 Ft"}]
[{"$nulls":5},"Étkezés",{"v":20,"d":"20 Ft"}]
[{"$nulls":5},"Elektronika",{"v":125,"d":"125 Ft"}]
[{"$nulls":5},"Zene",{"v":20,"d":"20 Ft"}]
[{"$nulls":5},"Parkolás",{"v":20,"d":"20 Ft"}]
[{"$nulls":5},"Jegyek",{"v":125,"d":"125 Ft"}]
[{"$nulls":5},"Ruházat",{"v":125,"d":"125 Ft"}]
[{"$nulls":5},"Zeneórák",{"v":250,"d":"250 Ft"}]
[{"$nulls":5},"Anya",{"v":1427,"d":"1,427 Ft"}]
[{"$nulls":5},"Autóbiztosítás",{"v":74,"d":"74 Ft"}]
[{"$nulls":5},"Fogorvos",{"v":235,"d":"235 Ft"}]
[{"$nulls":5},"Áram",{"v":70,"d":"70 Ft"}]
[{"$nulls":5},"Élelmiszer",{"v":470,"d":"470 Ft"}]
[{"$nulls":5},"Üzemanyag",{"v":74,"d":"74 Ft"}]
[{"$nulls":5},"Egészségügy",{"v":74,"d":"74 Ft"}]
[{"$nulls":5},"Tagdíjak",{"v":125,"d":"125 Ft"}]
[{"$nulls":5},"Egészségbiztosítás",{"v":70,"d":"70 Ft"}]
[{"$nulls":5},"Lakásbiztosítás",{"v":235,"d":"235 Ft"}]
[{"$nulls":5},"Grand Total",{"v":4362,"d":"4,362 Ft"}]
{"$rows_empty":68}
[null,"Dátum","Vevő","Típus","Összeg"]
[null,"2017-01-17","Apa","Sport",{"v":1000,"d":"1,000 Ft"}]
[null,"2017-01-17","Apa","Repülőjegy",{"v":500,"d":"500 Ft"}]
[null,"2017-01-17","Apa","Adók",{"v":500,"d":"500 Ft"}]
[null,"2017-02-20","Szilvia","Zene",{"v":20,"d":"20 Ft"}]
[null,"2017-02-25","Szilvia","Jegyek",{"v":125,"d":"125 Ft"}]
[null,"2017-01-21","Szilvia","Könyv",{"v":250,"d":"250 Ft"}]
[null,"2017-02-20","Szilvia","Étkezés",{"v":20,"d":"20 Ft"}]
[null,"2017-02-25","Szilvia","Ruházat",{"v":125,"d":"125 Ft"}]
[null,"2017-01-21","Szilvia","Zeneórák",{"v":250,"d":"250 Ft"}]
[null,"2017-02-20","Szilvia","Parkolás",{"v":20,"d":"20 Ft"}]
[null,"2017-02-25","Szilvia","Elektronika",{"v":125,"d":"125 Ft"}]
[null,"2017-01-01","Anya","Üzemanyag",{"v":74,"d":"74 Ft"}]
[null,"2017-01-15","Anya","Élelmiszer",{"v":235,"d":"235 Ft"}]
[null,"2017-01-21","Anya","Tagdíjak",{"v":125,"d":"125 Ft"}]
[null,"2017-02-02","Anya","Élelmiszer",{"v":235,"d":"235 Ft"}]
[null,"2017-01-01","Anya","Egészségügy",{"v":74,"d":"74 Ft"}]
[null,"2017-01-15","Anya","Áram",{"v":70,"d":"70 Ft"}]
[null,"2017-02-02","Anya","Fogorvos",{"v":235,"d":"235 Ft"}]
[null,"2017-01-01","Anya","Autóbiztosítás",{"v":74,"d":"74 Ft"}]
[null,"2017-01-15","Anya","Egészségbiztosítás",{"v":70,"d":"70 Ft"}]
[null,"2017-02-02","Anya","Lakásbiztosítás",{"v":235,"d":"235 Ft"}]

{"sheet":"16","index":16,"n_rows":121,"n_cols":7,"rows_kept":121}
["A teljes második sormezőt is összecsukhatja vagy kibonthatja, és így még egyszerűbbé teheti a kimutatást."]
["Megoldókulcs"]
["Jelölje ki a kimutatásban az F7–G31 cellatartományt, és nyomja le az ALT+JÉ billentyűkombinációt, majd az M billentyűt a teljes csoport összecsukásához. A teljes csoport kibontásához nyomja le az ALT+JÉ billentyűkombinációt, majd az E billentyűt."]
["Az oktatóanyag folytatásához nyomja le a CTRL+PAGE DOWN billentyűkombinációt. Az előző lapra ugráshoz nyomja le a CTRL+PAGE UP billentyűkombinációt."]
[]
[{"$nulls":5},{"$f":"IF(AND($F$9=\"Szilvia\",$G$9=935),\"Csak így tovább!\",\" \")","v":" "}]
[{"$nulls":5},"Row Labels","Összeg / Összeg"]
[{"$nulls":5},"Apa",{"v":2000,"d":"2,000 Ft"}]
[{"$nulls":5},"Sport",{"v":1000,"d":"1,000 Ft"}]
[{"$nulls":5},"Adók",{"v":500,"d":"500 Ft"}]
[{"$nulls":5},"Repülőjegy",{"v":500,"d":"500 Ft"}]
[{"$nulls":5},"Szilvia",{"v":935,"d":"935 Ft"}]
[{"$nulls":5},"Könyv",{"v":250,"d":"250 Ft"}]
[{"$nulls":5},"Étkezés",{"v":20,"d":"20 Ft"}]
[{"$nulls":5},"Elektronika",{"v":125,"d":"125 Ft"}]
[{"$nulls":5},"Zene",{"v":20,"d":"20 Ft"}]
[{"$nulls":5},"Parkolás",{"v":20,"d":"20 Ft"}]
[{"$nulls":5},"Jegyek",{"v":125,"d":"125 Ft"}]
[{"$nulls":5},"Ruházat",{"v":125,"d":"125 Ft"}]
[{"$nulls":5},"Zeneórák",{"v":250,"d":"250 Ft"}]
[{"$nulls":5},"Anya",{"v":1427,"d":"1,427 Ft"}]
[{"$nulls":5},"Autóbiztosítás",{"v":74,"d":"74 Ft"}]
[{"$nulls":5},"Fogorvos",{"v":235,"d":"235 Ft"}]
[{"$nulls":5},"Áram",{"v":70,"d":"70 Ft"}]
[{"$nulls":5},"Élelmiszer",{"v":470,"d":"470 Ft"}]
[{"$nulls":5},"Üzemanyag",{"v":74,"d":"74 Ft"}]
[{"$nulls":5},"Egészségügy",{"v":74,"d":"74 Ft"}]
[{"$nulls":5},"Egészségbiztosítás",{"v":70,"d":"70 Ft"}]
[{"$nulls":5},"Tagdíjak",{"v":125,"d":"125 Ft"}]
[{"$nulls":5},"Lakásbiztosítás",{"v":235,"d":"235 Ft"}]
[{"$nulls":5},"Grand Total",{"v":4362,"d":"4,362 Ft"}]
{"$rows_empty":68}
[null,"Dátum","Vevő","Típus","Összeg"]
[null,"2017-01-17","Apa","Sport",{"v":1000,"d":"1,000 Ft"}]
[null,"2017-01-17","Apa","Repülőjegy",{"v":500,"d":"500 Ft"}]
[null,"2017-01-17","Apa","Adók",{"v":500,"d":"500 Ft"}]
[null,"2017-02-20","Szilvia","Zene",{"v":20,"d":"20 Ft"}]
[null,"2017-02-25","Szilvia","Jegyek",{"v":125,"d":"125 Ft"}]
[null,"2017-01-21","Szilvia","Könyv",{"v":250,"d":"250 Ft"}]
[null,"2017-02-20","Szilvia","Étkezés",{"v":20,"d":"20 Ft"}]
[null,"2017-02-25","Szilvia","Ruházat",{"v":125,"d":"125 Ft"}]
[null,"2017-01-21","Szilvia","Zeneórák",{"v":250,"d":"250 Ft"}]
[null,"2017-02-20","Szilvia","Parkolás",{"v":20,"d":"20 Ft"}]
[null,"2017-02-25","Szilvia","Elektronika",{"v":125,"d":"125 Ft"}]
[null,"2017-01-01","Anya","Üzemanyag",{"v":74,"d":"74 Ft"}]
[null,"2017-01-15","Anya","Élelmiszer",{"v":235,"d":"235 Ft"}]
[null,"2017-01-21","Anya","Tagdíjak",{"v":125,"d":"125 Ft"}]
[null,"2017-02-02","Anya","Élelmiszer",{"v":235,"d":"235 Ft"}]
[null,"2017-01-01","Anya","Egészségügy",{"v":74,"d":"74 Ft"}]
[null,"2017-01-15","Anya","Áram",{"v":70,"d":"70 Ft"}]
[null,"2017-02-02","Anya","Fogorvos",{"v":235,"d":"235 Ft"}]
[null,"2017-01-01","Anya","Autóbiztosítás",{"v":74,"d":"74 Ft"}]
[null,"2017-01-15","Anya","Egészségbiztosítás",{"v":70,"d":"70 Ft"}]
[null,"2017-02-02","Anya","Lakásbiztosítás",{"v":235,"d":"235 Ft"}]

{"sheet":"17","index":17,"n_rows":107,"n_cols":13,"rows_kept":107}
["Egynél több oszlopmezőt is létrehozhat. Ezeket is összecsukhatja vagy kibonthatja."]
["A kimutatás ebben a példában a B13–M19 cellákban található. Ebben az esetben az Oszlopok szakaszban szerepel egy Típus kategória, amely az Élelmiszer és a Közművek típusba tartozó tételeket tartalmazza."]
["PRÓBÁLJA KI\nJelölje ki a C14 cellát (Élelmiszer), és az ALT+JÉ billentyűkombinációval és az M billentyűvel csukja össze a teljes mezőt. A kibontásához használja az ALT+JÉ billentyűkombinációt majd az E billentyűt."]
["Az oktatóanyag folytatásához nyomja le a CTRL+PAGE DOWN billentyűkombinációt. Az előző lapra ugráshoz nyomja le a CTRL+PAGE UP billentyűkombinációt."]
{"$rows_empty":7}
[null,null,{"$f":"IF(AND($C$16=398,$D$15=\"Jan.\"),\"Szép!\",\" \")","v":" "}]
[null,"Összeg / Összeg","Column Labels"]
[null,null,"Élelmiszer",{"$nulls":3},"Élelmiszer Total","Közművek",{"$nulls":3},"Közművek Total","Grand Total"]
[null,"Row Labels","Jan.","Febr.","Márc.","Ápr.",null,"Január","Febr.","Márc.","Ápr."]
[null,"Szilvia",{"v":74,"d":"74 Ft"},{"v":74,"d":"74 Ft"},{"v":125,"d":"125 Ft"},{"v":125,"d":"125 Ft"},{"v":398,"d":"398 Ft"},{"$nulls":5},{"v":398,"d":"398 Ft"}]
[null,"Apa",{"v":235,"d":"235 Ft"},{"v":235,"d":"235 Ft"},{"v":235,"d":"235 Ft"},{"v":74,"d":"74 Ft"},{"v":779,"d":"779 Ft"},{"$nulls":5},{"v":779,"d":"779 Ft"}]
[null,"Anya",{"$nulls":5},{"v":1000,"d":"1,000 Ft"},{"v":1000,"d":"1,000 Ft"},{"v":20,"d":"20 Ft"},{"v":70,"d":"70 Ft"},{"v":2090,"d":"2,090 Ft"},{"v":2090,"d":"2,090 Ft"}]
[null,"Grand Total",{"v":309,"d":"309 Ft"},{"v":309,"d":"309 Ft"},{"v":360,"d":"360 Ft"},{"v":199,"d":"199 Ft"},{"v":1177,"d":"1,177 Ft"},{"v":1000,"d":"1,000 Ft"},{"v":1000,"d":"1,000 Ft"},{"v":20,"d":"20 Ft"},{"v":70,"d":"70 Ft"},{"v":2090,"d":"2,090 Ft"},{"v":3267,"d":"3,267 Ft"}]
{"$rows_empty":75}
[null,"Hónap","Vevő","Típus","Összeg"]
[null,"Jan.","Szilvia","Élelmiszer",{"v":74,"d":"74 Ft"}]
[null,"Jan.","Apa","Élelmiszer",{"v":235,"d":"235 Ft"}]
[null,"Január","Anya","Közművek",{"v":1000,"d":"1,000 Ft"}]
[null,"Febr.","Szilvia","Élelmiszer",{"v":74,"d":"74 Ft"}]
[null,"Febr.","Apa","Élelmiszer",{"v":235,"d":"235 Ft"}]
[null,"Febr.","Anya","Közművek",{"v":1000,"d":"1,000 Ft"}]
[null,"Márc.","Szilvia","Élelmiszer",{"v":125,"d":"125 Ft"}]
[null,"Márc.","Apa","Élelmiszer",{"v":235,"d":"235 Ft"}]
[null,"Márc.","Anya","Közművek",{"v":20,"d":"20 Ft"}]
[null,"Ápr.","Szilvia","Élelmiszer",{"v":125,"d":"125 Ft"}]
[null,"Ápr.","Apa","Élelmiszer",{"v":74,"d":"74 Ft"}]
[null,"Ápr.","Anya","Közművek",{"v":70,"d":"70 Ft"}]

{"sheet":"18","index":18,"n_rows":146,"n_cols":5,"rows_kept":146}
["Fontos információ: Ha további adatokra van szüksége, több sormezőt vagy oszlopmezőt is felvehet. Ebben a példában három sormező szerepel."]
["A példában szereplő kimutatás a D8 cellától az E29 celláig terjed, és szerepel benne egy Évszak, egy Vevő és egy Típus mező a D oszlopban, illetve egy Összesen mező az E oszlopban."]
["SZAKÉRTŐI TIPP\nCsak mert felvehet rengeteg mezőt, még nem biztos, hogy így is kell tennie. Ebben a példában ez jól működik. Néha azonban, ha túl sok mező van a kimutatásban, különböző behúzásokkal, a kimutatás túl bonyolulttá, és így nehezen érthetővé válik mások számára. "]
["Az oktatóanyag folytatásához nyomja le a CTRL+PAGE DOWN billentyűkombinációt. Az előző lapra ugráshoz nyomja le a CTRL+PAGE UP billentyűkombinációt."]
[]
[]
[]
[{"$nulls":3},"Row Labels","Összeg / Összeg"]
[{"$nulls":3},"Ősz",{"v":5425,"d":"5,425 Ft"}]
[{"$nulls":3},"Anya",{"v":5425,"d":"5,425 Ft"}]
[{"$nulls":3},"Biztosítás",{"v":1272,"d":"1,272 Ft"}]
[{"$nulls":3},"Bérleti díj",{"v":3220,"d":"3,220 Ft"}]
[{"$nulls":3},"Közművek",{"v":933,"d":"933 Ft"}]
[{"$nulls":3},"Tavasz",{"v":4760,"d":"4,760 Ft"}]
[{"$nulls":3},"Apa",{"v":4760,"d":"4,760 Ft"}]
[{"$nulls":3},"Biztosítás",{"v":1040,"d":"1,040 Ft"}]
[{"$nulls":3},"Bérleti díj",{"v":2400,"d":"2,400 Ft"}]
[{"$nulls":3},"Közművek",{"v":1320,"d":"1,320 Ft"}]
[{"$nulls":3},"Nyár",{"v":3473,"d":"3,473 Ft"}]
[{"$nulls":3},"Anya",{"v":3473,"d":"3,473 Ft"}]
[{"$nulls":3},"Biztosítás",{"v":1080,"d":"1,080 Ft"}]
[{"$nulls":3},"Bérleti díj",{"v":1260,"d":"1,260 Ft"}]
[{"$nulls":3},"Közművek",{"v":1133,"d":"1,133 Ft"}]
[{"$nulls":3},"Tél",{"v":4100,"d":"4,100 Ft"}]
[{"$nulls":3},"Apa",{"v":4100,"d":"4,100 Ft"}]
[{"$nulls":3},"Biztosítás",{"v":1030,"d":"1,030 Ft"}]
[{"$nulls":3},"Bérleti díj",{"v":1420,"d":"1,420 Ft"}]
[{"$nulls":3},"Közművek",{"v":1650,"d":"1,650 Ft"}]
[{"$nulls":3},"Grand Total",{"v":17758,"d":"17,758 Ft"}]
{"$rows_empty":68}
[null,"Vevő","Évszak","Típus","Összeg"]
[null,"Apa","Tél","Biztosítás",{"v":300,"d":"300 Ft"}]
[null,"Apa","Tél","Bérleti díj",{"v":200,"d":"200 Ft"}]
[null,"Apa","Tél","Közművek",{"v":400,"d":"400 Ft"}]
[null,"Apa","Tél","Biztosítás",{"v":300,"d":"300 Ft"}]
[null,"Apa","Tél","Bérleti díj",{"v":800,"d":"800 Ft"}]
[null,"Apa","Tél","Közművek",{"v":400,"d":"400 Ft"}]
[null,"Apa","Tél","Biztosítás",{"v":200,"d":"200 Ft"}]
[null,"Apa","Tél","Bérleti díj",{"v":300,"d":"300 Ft"}]
[null,"Apa","Tél","Közművek",{"v":450,"d":"450 Ft"}]
[null,"Apa","Tél","Biztosítás",{"v":230,"d":"230 Ft"}]
[null,"Apa","Tél","Bérleti díj",{"v":120,"d":"120 Ft"}]
[null,"Apa","Tél","Közművek",{"v":400,"d":"400 Ft"}]
[null,"Apa","Tavasz","Biztosítás",{"v":210,"d":"210 Ft"}]
[null,"Apa","Tavasz","Bérleti díj",{"v":300,"d":"300 Ft"}]
[null,"Apa","Tavasz","Közművek",{"v":400,"d":"400 Ft"}]
[null,"Apa","Tavasz","Biztosítás",{"v":230,"d":"230 Ft"}]
[null,"Apa","Tavasz","Bérleti díj",{"v":900,"d":"900 Ft"}]
[null,"Apa","Tavasz","Közművek",{"v":300,"d":"300 Ft"}]
[null,"Apa","Tavasz","Biztosítás",{"v":200,"d":"200 Ft"}]
[null,"Apa","Tavasz","Bérleti díj",{"v":1000,"d":"1,000 Ft"}]
[null,"Apa","Tavasz","Közművek",{"v":220,"d":"220 Ft"}]
[null,"Apa","Tavasz","Biztosítás",{"v":400,"d":"400 Ft"}]
[null,"Apa","Tavasz","Bérleti díj",{"v":200,"d":"200 Ft"}]
[null,"Apa","Tavasz","Közművek",{"v":400,"d":"400 Ft"}]
[null,"Anya","Nyár","Biztosítás",{"v":100,"d":"100 Ft"}]
[null,"Anya","Nyár","Bérleti díj",{"v":30,"d":"30 Ft"}]
[null,"Anya","Nyár","Közművek",{"v":123,"d":"123 Ft"}]
[null,"Anya","Nyár","Biztosítás",{"v":300,"d":"300 Ft"}]
[null,"Anya","Nyár","Bérleti díj",{"v":350,"d":"350 Ft"}]
[null,"Anya","Nyár","Közművek",{"v":230,"d":"230 Ft"}]
[null,"Anya","Nyár","Biztosítás",{"v":120,"d":"120 Ft"}]
[null,"Anya","Nyár","Bérleti díj",{"v":640,"d":"640 Ft"}]
[null,"Anya","Nyár","Közművek",{"v":530,"d":"530 Ft"}]
[null,"Anya","Nyár","Biztosítás",{"v":560,"d":"560 Ft"}]
[null,"Anya","Nyár","Bérleti díj",{"v":240,"d":"240 Ft"}]
[null,"Anya","Nyár","Közművek",{"v":250,"d":"250 Ft"}]
[null,"Anya","Ősz","Biztosítás",{"v":62,"d":"62 Ft"}]
[null,"Anya","Ősz","Bérleti díj",{"v":600,"d":"600 Ft"}]
[null,"Anya","Ősz","Közművek",{"v":340,"d":"340 Ft"}]
[null,"Anya","Ősz","Biztosítás",{"v":205,"d":"205 Ft"}]
[null,"Anya","Ősz","Bérleti díj",{"v":500,"d":"500 Ft"}]
[null,"Anya","Ősz","Közművek",{"v":403,"d":"403 Ft"}]
[null,"Anya","Ősz","Biztosítás",{"v":503,"d":"503 Ft"}]
[null,"Anya","Ősz","Bérleti díj",{"v":2000,"d":"2,000 Ft"}]
[null,"Anya","Ősz","Közművek",{"v":140,"d":"140 Ft"}]
[null,"Anya","Ősz","Biztosítás",{"v":502,"d":"502 Ft"}]
[null,"Anya","Ősz","Bérleti díj",{"v":120,"d":"120 Ft"}]
[null,"Anya","Ősz","Közművek",{"v":50,"d":"50 Ft"}]

{"sheet":"19","index":19,"n_rows":55,"n_cols":5,"rows_kept":55}
["Készen áll a további gyakorlásra? Ellenőrizze az alábbi adatokat a B7–E55 cellákban. Ha elkészült, lépjen a következő lapra, ahol gyakorolhatja az eddig elsajátított ismereteket. "]
["Nem kell ellenőriznie az összes adatsort. Elég csak a 7. sorban lévő mezőnevekre figyelnie. A következő lapon ezekkel fog dolgozni. "]
["Az oktatóanyag folytatásához nyomja le a CTRL+PAGE DOWN billentyűkombinációt. Az előző lapra ugráshoz nyomja le a CTRL+PAGE UP billentyűkombinációt."]
[]
[]
[]
[null,"Évszak","Ért. képviselő","Termék","Eladott egységek"]
[null,"Tél","Ilona","Narancs",300]
[null,"Tél","Gábor","Grapefruit",200]
[null,"Tél","Géza","Alma",400]
[null,"Tél","Ilona","Banán",300]
[null,"Tél","Gábor","Narancs",800]
[null,"Tél","Géza","Grapefruit",400]
[null,"Tél","Ilona","Alma",200]
[null,"Tél","Gábor","Banán",300]
[null,"Tél","Géza","Narancs",450]
[null,"Tél","Ilona","Grapefruit",230]
[null,"Tél","Gábor","Alma",120]
[null,"Tél","Géza","Banán",400]
[null,"Tavasz","Ilona","Gyökér",210]
[null,"Tavasz","Gábor","Burgonya",300]
[null,"Tavasz","Géza","Saláta",400]
[null,"Tavasz","Ilona","Retek",230]
[null,"Tavasz","Gábor","Gyökér",900]
[null,"Tavasz","Géza","Burgonya",300]
[null,"Tavasz","Ilona","Saláta",200]
[null,"Tavasz","Gábor","Retek",1000]
[null,"Tavasz","Géza","Gyökér",220]
[null,"Tavasz","Ilona","Burgonya",400]
[null,"Tavasz","Gábor","Saláta",200]
[null,"Tavasz","Géza","Retek",400]
[null,"Nyár","Ilona","Áfonya",100]
[null,"Nyár","Gábor","Eper",30]
[null,"Nyár","Géza","Szőlő",123]
[null,"Nyár","Ilona","Sütőtök",300]
[null,"Nyár","Gábor","Áfonya",350]
[null,"Nyár","Géza","Eper",230]
[null,"Nyár","Ilona","Szőlő",120]
[null,"Nyár","Gábor","Sütőtök",640]
[null,"Nyár","Géza","Áfonya",530]
[null,"Nyár","Ilona","Eper",560]
[null,"Nyár","Gábor","Szőlő",240]
[null,"Nyár","Géza","Sütőtök",250]
[null,"Ősz","Ilona","Tök",62]
[null,"Ősz","Gábor","Cukkini",600]
[null,"Ősz","Géza","Alma",340]
[null,"Ősz","Ilona","Narancs",205]
[null,"Ősz","Gábor","Tök",500]
[null,"Ősz","Géza","Cukkini",403]
[null,"Ősz","Ilona","Alma",503]
[null,"Ősz","Gábor","Narancs",2000]
[null,"Ősz","Géza","Tök",140]
[null,"Ősz","Ilona","Cukkini",502]
[null,"Ősz","Gábor","Alma",120]
[null,"Ősz","Géza","Narancs",50]

{"sheet":"20","index":20,"n_rows":17,"n_cols":11,"rows_kept":17}
["1. Ebben a példában a kimutatásterület a B12–C17 cellákban található. Lépjen ezen cellák bármelyikére. \n\n"]
["2. A Kimutatásmezők lista megnyitásához nyomja le az ALT+JÉ billentyűkombinációt, majd az S billentyűt. A fókusz automatikusan a Keresés szövegmezőbe kerül: „Ide írhatja a keresett szavakat”. Ne írjon be semmit, hanem egyszer nyomja le a Tab billentyűt. MEGJEGYZÉS: Ha a mezőlista nem indul el, nyomja le ismét az ALT+JÉ billentyűkombinációt, majd az S billentyűt."]
["3. A nyílbillentyűkkel lépjen az Ért. képviselő mezőhöz. A szóközbillentyűt lenyomva vegye fel az Ért. képviselő mezőt a Sorok területre. Ha az Oszlopok területen szeretné megjeleníteni az értékesítési képviselő adatait, a Tab billentyűvel lépjen az Ért. képviselő mezőre a Sor szakaszban, nyomja le a szóközbillentyűt, és válassza az „Áthelyezés az oszlopcímkékhez” lehetőséget. Az ESC billentyű lenyomásával zárja be a Kimutatásmezők panelt. "]
["4. Állapítsa meg, hogy ki adta el a legtöbb tételt ősszel, majd jelölje ki a K8 cellát. "]
["Az oktatóanyag folytatásához nyomja le a CTRL+PAGE DOWN billentyűkombinációt. Az előző lapra ugráshoz nyomja le a CTRL+PAGE UP billentyűkombinációt."]
[]
[{"$nulls":10},"Válasszon:"]
[]
[{"$nulls":10},{"$f":"IF($K$8=\"Gábor\",\"Igaza van!\",IF($K$8=\"Géza\",\"Próbálkozzon újra...\",IF($K$8=\"Ilona\",\"Nem igazán...\",IF($K$8=\" \",\" \",\" \"))))","v":" "}]
[]
[]
[null,"Row Labels","Összeg / Eladott egységek"]
[null,"Ősz",{"v":5425,"d":"5,425"}]
[null,"Tavasz",{"v":4760,"d":"4,760"}]
[null,"Nyár",{"v":3473,"d":"3,473"}]
[null,"Tél",{"v":4100,"d":"4,100"}]
[null,"Grand Total",{"v":17758,"d":"17,758"}]

{"sheet":"21","index":21,"n_rows":14,"n_cols":10,"rows_kept":14}
["1. A B13 cellára kattintva aktiválja az „Összeg / Eladott egységek” nevű kimutatást.\n\n"]
["2. A Kimutatásmezők lista megnyitásához nyomja le az ALT+JÉ billentyűkombinációt, majd az S billentyűt. A fókusz automatikusan a Keresés szövegmezőbe kerül: „Ide írhatja a keresett szavakat”. Ne írjon be semmit, hanem egyszer nyomja le a Tab billentyűt. MEGJEGYZÉS: Ha a mezőlista nem indul el, nyomja le ismét az ALT+JÉ billentyűkombinációt, majd az S billentyűt."]
["3. A nyílbillentyűkkel és a szóközbillentyűvel bontsa ki a példát egy függőleges kimutatásként, amelynek a bal oldalán az évszakok, alattuk behúzva pedig az értékesítési képviselők szerepelnek. Nyomja le az ESC billentyűt a Kimutatásmezők panel bezárásához. "]
["Az oktatóanyag folytatásához nyomja le a CTRL+PAGE DOWN billentyűkombinációt. Az előző lapra ugráshoz nyomja le a CTRL+PAGE UP billentyűkombinációt."]
[{"$nulls":9},{"$f":"IF(AND(B$14=\"Nyár\",$C$17=1080),\"Szép munka! Elhelyezett egy másodlagos\",\" \")","v":" "}]
[{"$nulls":9},{"$f":"IF(AND(B$14=\"Nyár\",$C$17=1080),\"sormezőt. Most görgessen lejjebb, és\",\" \")","v":" "}]
[{"$nulls":9},{"$f":"IF(AND(B$14=\"Nyár\",$C$17=1080),\"kattintson a Következő gombra.\",\" \")","v":" "}]
[]
[]
[]
[]
[]
[null,"Összeg / Eladott egységek"]
[null,{"v":17758,"d":"17,758"}]

{"sheet":"22","index":22,"n_rows":14,"n_cols":10,"rows_kept":14}
["1. A B13 cellára kattintva aktiválja az „Összeg / Eladott egységek” nevű kimutatást."]
["2. A Kimutatásmezők lista megnyitásához nyomja le az ALT+JÉ billentyűkombinációt, majd az S billentyűt. A fókusz automatikusan a Keresés szövegmezőbe kerül: „Ide írhatja a keresett szavakat”. Ne írjon be semmit, hanem egyszer nyomja le a Tab billentyűt. MEGJEGYZÉS: Ha a mezőlista nem indul el, nyomja le ismét az ALT+JÉ billentyűkombinációt, majd az S billentyűt."]
["3. A nyílbillentyűkkel és a szóközbillentyűvel módosítsa úgy a példát, hogy abban az egyes termékek a saját sorukban, az évszakok pedig a saját oszlopukban jelenjenek meg."]
["Az oktatóanyag folytatásához nyomja le a CTRL+PAGE DOWN billentyűkombinációt. Az előző lapra ugráshoz nyomja le a CTRL+PAGE UP billentyűkombinációt.",{"$nulls":8},{"$f":"IF(AND($B$15=\"Áfonya\",$G$28=702),\"Szép munka! Elhelyezett egy\",\" \")","v":" "}]
[{"$nulls":9},{"$f":"IF(AND($B$15=\"Áfonya\",$G$28=702),\"sormezőt a bal oldalon, valamint\",\" \")","v":" "}]
[{"$nulls":9},{"$f":"IF(AND($B$15=\"Áfonya\",$G$28=702),\"egy oszlopmezőt négy új oszloppal.\",\" \")","v":" "}]
[{"$nulls":9},{"$f":"IF(AND($B$15=\"Áfonya\",$G$28=702),\"Görgessen lejjebb, és kattintson a\",\" \")","v":" "}]
[{"$nulls":9},{"$f":"IF(AND($B$15=\"Áfonya\",$G$28=702),\"Következő gombra...\",\" \")","v":" "}]
[]
[]
[]
[]
[null,"Összeg / Eladott egységek"]
[null,{"v":17758,"d":"17,758"}]

{"sheet":"23","index":23,"n_rows":16,"n_cols":18,"rows_kept":16}
["1. A B13 cellára kattintva aktiválja az „Összeg / Eladott egységek” nevű kimutatást.\n\n"]
["2. A Kimutatásmezők lista megnyitásához nyomja le az ALT+JÉ billentyűkombinációt, majd az S billentyűt. A fókusz automatikusan a Keresés szövegmezőbe kerül: „Ide írhatja a keresett szavakat”. Ne írjon be semmit, hanem egyszer nyomja le a Tab billentyűt. MEGJEGYZÉS: Ha a mezőlista nem indul el, nyomja le ismét az ALT+JÉ billentyűkombinációt, majd az S billentyűt."]
["3. A Tab billentyűvel, a nyílbillentyűkkel és a szóközbillentyűvel módosítsa úgy a példát, hogy abban az értékesítési képviselők a bal oldalon legyenek láthatók, alattuk a behúzott évszakokkal."]
["Az oktatóanyag folytatásához nyomja le a CTRL+PAGE DOWN billentyűkombinációt. Az előző lapra ugráshoz nyomja le a CTRL+PAGE UP billentyűkombinációt."]
[{"$nulls":7},{"$f":"IF(AND($B$14=\"Géza\",$C$14=5036),\"Szép munka! Most már könnyebben\",\" \")","v":" "}]
[{"$nulls":7},{"$f":"IF(AND($B$14=\"Géza\",$C$14=5036),\"olvashatók az adatok. Görgessen lejjebb,\",\" \")","v":" "}]
[{"$nulls":7},{"$f":"IF(AND($B$14=\"Géza\",$C$14=5036),\"és kattintson a Következő gombra...\",\" \")","v":" "}]
[]
[]
[]
[]
[]
[null,null,"Column Labels"]
[null,null,"Géza",{"$nulls":3},"Géza Total","Gábor",{"$nulls":3},"Gábor Total","Ilona",{"$nulls":3},"Ilona Total","Grand Total"]
[null,null,"Ősz","Tavasz","Nyár","Tél",null,"Ősz","Tavasz","Nyár","Tél",null,"Ősz","Tavasz","Nyár","Tél"]
[null,"Összeg / Eladott egységek",933,{"v":1320,"d":"1,320"},{"v":1133,"d":"1,133"},{"v":1650,"d":"1,650"},{"v":5036,"d":"5,036"},{"v":3220,"d":"3,220"},{"v":2400,"d":"2,400"},{"v":1260,"d":"1,260"},{"v":1420,"d":"1,420"},{"v":8300,"d":"8,300"},{"v":1272,"d":"1,272"},{"v":1040,"d":"1,040"},{"v":1080,"d":"1,080"},{"v":1030,"d":"1,030"},{"v":4422,"d":"4,422"},{"v":17758,"d":"17,758"}]

{"sheet":"24","index":24,"n_rows":14,"n_cols":9,"rows_kept":14}
["1. A B13 cellára kattintva aktiválja az „Összeg / Eladott egységek” nevű kimutatást."]
["2. A Kimutatásmezők lista megnyitásához nyomja le az ALT+JÉ billentyűkombinációt, majd az S billentyűt. A fókusz automatikusan a Keresés szövegmezőbe kerül: „Ide írhatja a keresett szavakat”. Ne írjon be semmit, hanem egyszer nyomja le a Tab billentyűt. MEGJEGYZÉS: Ha a mezőlista nem indul el, nyomja le ismét az ALT+JÉ billentyűkombinációt, majd az S billentyűt."]
["3. A Tab billentyűvel, a nyílbillentyűkkel és a szóközbillentyűvel módosítsa úgy a példát, hogy az egyes értékesítési képviselők saját oszloppal rendelkezzenek a bal oldalon az évszakoknak, illetve alattuk behúzva a termékeknek."]
["4. Jelölje ki az I9 cellát, és adja meg, hogy Géza mennyi grapefruitot adott el télen."]
["Az oktatóanyag folytatásához nyomja le a CTRL+PAGE DOWN billentyűkombinációt. Az előző lapra ugráshoz nyomja le a CTRL+PAGE UP billentyűkombinációt."]
[]
[]
[{"$nulls":8},"Válasszon:"]
[]
[{"$nulls":8},{"$f":"IF($I$9=400,\"Igaza van!\",IF($I$9=530,\"Próbálkozzon újra...\",IF($I$9=123,\"Nem igazán...\",\" \")))","v":" "}]
[]
[]
[null,"Összeg / Eladott egységek"]
[null,{"v":17758,"d":"17,758"}]

{"sheet":"További információ","index":25,"n_rows":7,"n_cols":1,"rows_kept":7}
["Szép munka. Hát nem nagyszerűek a kimutatások?"]
["Érdemes azonban tovább folytatni a tanulást! Van még mit felfedezni..."]
["További információ a kimutatásokról\nEbből a kimutatásokkal kapcsolatos hasznos cikkből további műveleteket is elsajátíthat."]
["A frissítésről\nEbben a fontos cikkben a kimutatások frissítéséről olvashat. "]
["Közösség\nMegismerkedhet más Excel-rajongókkal. Kölcsönösen segíthetnek egymásnak."]
[]
[" "]